bitfinex/quotes_SOLUSD_20251119
["timestamp","ask_amount","ask_price","bid_price","bid_amount"]
[1763565333376,0.7,138.62,138.58,33.12550212]
[1763565333668,0.7,138.62,138.58,25.90952419]
[1763565334250,6.02856419,138.61,138.58,1.76]
[1763565334564,0.7,138.62,138.58,1.76]
[1763565334766,0.7,138.61,138.58,1.76]
[1763565334978,0.2,138.63,138.58,1.76]
[1763565334979,0.2,138.63,138.6,6.02856419]
[1763565335273,0.2,138.63,138.62,6.02856419]
[1763565335768,0.2,138.63,138.61,7.78856419]
[1763565336478,0.9,138.63,138.61,1.76]
[1763565336968,0.9,138.63,138.59,1.76]
[1763565336969,0.7,138.62,138.59,1.76]
[1763565337968,6.72856419,138.62,138.59,1.76]
[1763565338171,0.7,138.62,138.56,7.78856419]
[1763565338368,0.7,138.61,138.57,6.02856419]
[1763565339568,0.9,138.63,138.58,6.02856419]
[1763565339768,0.7,138.62,138.58,6.02856419]
[1763565341192,0.2,138.63,138.6,6.02856419]
[1763565341577,0.9,138.63,138.6,6.02856419]
[1763565342392,5.72721518,138.63,138.6,6.02856419]
[1763565342583,0.9,138.63,138.59,1.76]
[1763565342781,0.7,138.62,138.59,7.78856419]
[1763565343182,0.7,138.62,138.59,1.76]
[1763565343374,0.7,138.62,138.59,7.78856419]
[1763565343711,0.2,138.63,138.6,6.02856419]
[1763565344494,0.9,138.63,138.59,7.78856419]
[1763565345474,0.9,138.63,138.6,6.02856419]
[1763565345677,0.2,138.63,138.62,15.81739188]
[1763565345901,0.2,138.63,138.62,17.57739188]
[1763565346195,0.2,138.63,138.62,11.54882769]
[1763565346397,0.2,138.63,138.62,33.93835188]
[1763565346586,0.2,138.63,138.6,9.78882769]
[1763565346783,0.2,138.63,138.62,6.02856419]
[1763565346986,0.2,138.63,138.62,23.03135811]
[1763565347290,0.2,138.63,138.62,6.02856419]
[1763565347497,0.2,138.63,138.62,13.24253042]
[1763565347695,0.2,138.63,138.62,23.03135811]
[1763565347990,0.2,138.63,138.62,41.15231811]
[1763565351291,0.2,138.63,138.62,33.93835188]
[1763565351684,0.2,138.63,138.62,41.15231811]
[1763565353100,0.2,138.63,138.62,42.91231811]
[1763565355205,0.2,138.63,138.62,36.88375392]
[1763565355386,0.2,138.63,138.62,42.91231811]
[1763565356085,0.2,138.63,138.62,33.12349042]
[1763565356286,0.2,138.63,138.62,31.36349042]
[1763565356487,0.2,138.63,138.62,33.12349042]
[1763565357389,0.2,138.63,138.62,25.90952419]
[1763565358214,0.2,138.63,138.62,33.12349042]
[1763565358714,0.2,138.63,138.62,31.36349042]
[1763565358926,0.2,138.63,138.62,27.09492623]
[1763565359698,0.1,138.68,138.65,18.12096]
[1763565359904,0.77,138.68,138.66,1.76]
[1763565360211,0.77,138.68,138.67,6.02856419]
[1763565360618,0.1,138.68,138.67,6.02856419]
[1763565361118,0.67,138.72,138.67,6.02856419]
[1763565361119,0.47,138.72,138.67,6.02856419]
[1763565361427,6.02856419,138.71,138.67,1.76]
[1763565361590,6.02856419,138.71,138.67,7.78856419]
[1763565361794,0.1,138.74,138.7,6.02856419]
[1763565362128,0.1,138.74,138.7,7.78856419]
[1763565362501,0.1,138.74,138.71,6.02856419]
[1763565362804,0.1,138.74,138.7,1.76]
[1763565362994,0.1,138.74,138.71,6.02856419]
[1763565363196,6.69856419,138.73,138.7,1.76]
[1763565363509,0.67,138.73,138.7,7.78856419]
[1763565363705,0.67,138.72,138.7,7.78856419]
[1763565363909,0.67,138.72,138.7,1.76]
[1763565364303,0.67,138.72,138.7,7.78856419]
[1763565365121,0.67,138.72,138.71,6.02856419]
[1763565365317,0.67,138.72,138.7,7.78856419]
[1763565365518,0.1,138.74,138.71,6.02856419]
[1763565365810,0.1,138.74,138.73,6.02856419]
[1763565366027,0.1,138.74,138.73,14.99681042]
[1763565366406,0.1,138.74,138.73,24.98563811]
[1763565367215,0.2,138.77,138.76,9.78882769]
[1763565367421,0.67,138.84,138.76,17.57739188]
[1763565367725,0.67,138.83,138.82,6.02856419]
[1763565368027,0.67,138.83,138.82,7.78856419]
[1763565368232,0.67,138.86,138.82,7.78856419]
[1763565368403,0.67,138.86,138.85,6.02856419]
[1763565368715,0.67,138.86,138.84,6.02856419]
[1763565368921,0.67,138.86,138.85,1.76]
[1763565370824,0.67,138.86,138.85,7.78856419]
[1763565371123,0.67,138.88,138.85,7.78856419]
[1763565371625,6.02856419,138.93,138.87,6.02856419]
[1763565371841,0.67,138.87,138.85,1.76]
[1763565372001,0.67,138.87,138.85,7.78856419]
[1763565372196,0.67,138.9,138.86,6.02856419]
[1763565372415,0.67,138.9,138.89,6.02856419]
[1763565372618,0.67,138.92,138.89,6.02856419]
[1763565372824,0.67,138.92,138.88,1.76]
[1763565373097,6.02856419,138.91,138.86,6.02856419]
[1763565373517,6.02856419,138.91,138.85,19.88096]
[1763565373518,0.67,138.91,138.89,6.02856419]
[1763565374093,0.67,138.91,138.88,1.76]
[1763565374317,0.67,138.91,138.9,6.02856419]
[1763565374498,0.67,138.91,138.89,6.02856419]
[1763565374707,0.67,138.91,138.88,1.76]
[1763565374904,0.67,138.91,138.89,6.02856419]
[1763565375102,0.67,138.91,138.88,1.76]
[1763565375303,6.02856419,138.9,138.85,1.76]
[1763565375509,6.69856419,138.91,138.86,6.02856419]
[1763565375713,0.67,138.9,138.86,6.02856419]
[1763565375925,6.69856419,138.9,138.85,7.78856419]
[1763565376225,0.67,138.9,138.86,6.02856419]
[1763565376430,0.67,138.89,138.87,6.02856419]
[1763565376621,0.67,138.89,138.86,6.02856419]
[1763565376820,0.67,138.89,138.86,10.03926377]
[1763565377015,0.67,138.89,138.87,10.03926377]
[1763565377418,0.67,138.89,138.85,23.46335771]
[1763565377733,0.67,138.89,138.87,10.03926377]
[1763565378411,0.67,138.89,138.86,1.74]
[1763565378610,10.70926377,138.89,138.86,1.74]
[1763565379035,0.67,138.88,138.86,1.74]
[1763565379535,0.67,138.88,138.86,11.77926377]
[1763565379837,10.70926377,138.88,138.79,0.2]
[1763565380147,10.03926377,138.82,138.8,1.74]
[1763565380349,10.03926377,138.81,138.76,10.03926377]
[1763565380514,10.03926377,138.81,138.69,18.32096]
[1763565380515,10.03926377,138.78,138.69,0.2]
[1763565380718,10.03926377,138.77,138.72,10.03926377]
[1763565380919,10.03926377,138.78,138.73,10.03926377]
[1763565381235,0.71,138.79,138.75,10.03926377]
[1763565381531,28.16022377,138.8,138.74,11.77926377]
[1763565381532,0.71,138.78,138.74,11.77926377]
[1763565381781,18.12096,138.8,138.74,11.77926377]
[1763565381782,18.83096,138.8,138.76,10.03926377]
[1763565381941,0.71,138.8,138.77,10.03926377]
[1763565382246,0.71,138.79,138.76,10.03926377]
[1763565383668,0.71,138.85,138.78,10.03926377]
[1763565383830,0.71,138.85,138.77,1.94]
[1763565383831,0.71,138.85,138.83,10.03926377]
[1763565384030,0.71,138.85,138.82,1.74]
[1763565384288,0.71,138.85,138.83,10.03926377]
[1763565384435,0.71,138.85,138.82,1.74]
[1763565384630,0.71,138.85,138.83,10.03926377]
[1763565385040,0.71,138.85,138.82,1.74]
[1763565385239,0.67,138.85,138.83,10.03926377]
[1763565385436,0.67,138.89,138.84,10.03926377]
[1763565385774,0.67,138.9,138.87,10.03926377]
[1763565386145,0.67,138.9,138.88,1.74]
[1763565387529,10.03926377,138.89,138.82,18.12096]
[1763565387745,10.03926377,138.87,138.82,10.03926377]
[1763565387960,10.70926377,138.89,138.84,10.03926377]
[1763565388149,10.03926377,138.89,138.84,10.03926377]
[1763565388355,27.90978769,138.91,138.83,11.77926377]
[1763565388356,10.70926377,138.88,138.83,11.77926377]
[1763565388772,6.05029478,138.96,138.86,10.03926377]
[1763565388940,18.12096,138.89,138.87,10.03926377]
[1763565389136,18.12096,138.89,138.86,1.74]
[1763565389453,0.67,138.88,138.86,1.74]
[1763565390238,0.67,138.9,138.87,10.03926377]
[1763565390443,0.67,138.93,138.89,10.03926377]
[1763565390647,0.67,138.93,138.9,10.03926377]
[1763565390848,0.67,138.93,138.91,10.03926377]
[1763565391047,28.16022377,138.96,138.92,11.77926377]
[1763565391048,0.67,138.96,138.92,11.77926377]
[1763565391249,0.1,138.97,138.92,1.74]
[1763565391250,0.67,138.95,138.92,1.74]
[1763565391456,0.67,138.95,138.94,10.03926377]
[1763565391762,0.67,138.95,138.93,10.03926377]
[1763565391968,10.03926377,138.94,138.89,11.77926377]
[1763565392147,10.03926377,138.94,138.89,1.74]
[1763565392148,0.67,138.93,138.89,1.74]
[1763565392348,0.67,138.93,138.89,11.77926377]
[1763565393354,10.70926377,138.93,138.89,1.74]
[1763565393536,0.67,138.92,138.9,10.03926377]
[1763565394736,0.1,138.97,138.91,10.23926377]
[1763565394939,0.77,138.97,138.94,10.03926377]
[1763565395363,0.77,138.97,138.95,10.03926377]
[1763565395568,0.77,138.97,138.96,10.03926377]
[1763565395862,0.77,138.97,138.94,10.03926377]
[1763565396167,0.77,138.97,138.95,10.03926377]
[1763565396540,0.77,138.97,138.96,10.03926377]
[1763565396541,0.1,138.97,138.96,10.03926377]
[1763565397153,0.1,138.97,138.96,10.23926377]
[1763565397445,0.1,138.97,138.96,10.03926377]
[1763565397956,0.1,138.97,138.96,10.23926377]
[1763565398470,0.1,138.97,138.96,17.43557925]
[1763565398669,0.1,138.97,138.96,27.22440694]
[1763565398976,0.1,138.97,138.96,9.78882769]
[1763565399179,0.1,138.97,138.96,27.22440694]
[1763565399549,0.1,138.97,138.96,20.02809146]
[1763565399771,0.1,138.97,138.96,27.22440694]
[1763565399971,0.1,138.97,138.96,20.02809146]
[1763565400172,0.1,138.97,138.96,27.22440694]
[1763565400482,0.1,138.97,138.96,17.18514317]
[1763565400646,0.1,138.97,138.96,37.26367071]
[1763565401081,0.1,138.97,138.96,55.38463071]
[1763565401755,0.1,138.97,138.96,45.34536694]
[1763565402585,0.1,138.97,138.96,37.09653925]
[1763565403379,0.1,138.97,138.96,29.90022377]
[1763565403752,0.1,138.97,138.96,11.77926377]
[1763565403969,0.1,138.97,138.96,10.03926377]
[1763565404154,0.1,138.97,138.96,28.96440694]
[1763565404953,0.1,139.01,138.97,27.90978769]
[1763565405153,0.1,139.01,139.0,19.82809146]
[1763565405363,0.1,139.01,139.0,21.56809146]
[1763565405874,0.1,139.03,139.02,27.90978769]
[1763565406082,0.1,139.03,139.02,37.94905146]
[1763565406377,0.1,139.03,139.02,45.14226107]
[1763565406573,0.1,139.07,139.03,9.78882769]
[1763565406776,0.1,139.07,139.06,10.03926377]
[1763565406981,0.1,139.07,139.06,19.82809146]
[1763565407875,0.1,139.07,139.06,10.03926377]
[1763565408176,0.1,139.07,139.06,19.82809146]
[1763565408478,0.1,139.07,139.06,17.23040428]
[1763565408853,0.1,139.07,139.06,27.01923197]
[1763565409250,1.74,139.16,139.09,18.12096]
[1763565409251,0.67,139.16,139.09,18.12096]
[1763565409467,0.67,139.16,139.09,19.86096]
[1763565409782,10.70926377,139.16,139.11,10.03926377]
[1763565410161,0.66,139.15,139.12,10.03926377]
[1763565410362,10.69926377,139.15,139.1,10.03926377]
[1763565410660,0.66,139.15,139.1,10.03926377]
[1763565410852,0.66,139.14,139.1,10.03926377]
[1763565411471,10.69926377,139.14,139.09,10.03926377]
[1763565411855,0.66,139.13,139.09,10.03926377]
[1763565412285,0.66,139.13,139.1,10.03926377]
[1763565412859,0.66,139.13,139.09,10.03926377]
[1763565413262,10.03926377,139.12,139.07,10.03926377]
[1763565413566,10.03926377,139.11,139.06,10.03926377]
[1763565413778,10.03926377,139.09,139.04,10.03926377]
[1763565413978,10.03926377,139.09,138.98,38.69378476]
[1763565413979,10.03926377,139.08,139.03,10.03926377]
[1763565414372,0.66,139.07,138.99,25.31540119]
[1763565414563,0.66,139.07,139.03,10.03926377]
[1763565414760,0.66,139.07,139.04,10.03926377]
[1763565414979,0.66,139.07,138.99,7.19444119]
[1763565414980,0.66,139.07,139.0,9.78882769]
[1763565415162,0.66,139.07,139.05,10.03926377]
[1763565415367,28.16022377,139.11,139.06,10.03926377]
[1763565415570,10.69926377,139.1,139.01,1.74]
[1763565415890,10.03926377,139.08,139.03,10.03926377]
[1763565416264,0.66,139.07,139.04,10.03926377]
[1763565416462,0.66,139.07,139.05,10.03926377]
[1763565416677,10.03926377,139.1,139.06,10.03926377]
[1763565416678,0.66,139.1,139.06,10.03926377]
[1763565416867,0.66,139.09,139.07,10.03926377]
[1763565417071,10.03926377,139.13,139.05,9.78882769]
[1763565417298,0.66,139.12,139.08,10.03926377]
[1763565417500,10.69926377,139.12,139.07,10.03926377]
[1763565417702,10.03926377,139.1,139.05,10.03926377]
[1763565418197,0.66,139.09,139.05,10.03926377]
[1763565418494,0.66,139.09,139.06,10.03926377]
[1763565418706,0.66,139.11,139.04,7.19217151]
[1763565418874,0.66,139.09,139.07,10.03926377]
[1763565419067,0.66,139.11,139.07,10.03926377]
[1763565419889,0.66,139.11,139.08,10.03926377]
[1763565420294,0.66,139.14,139.1,10.03926377]
[1763565420608,0.66,139.14,139.11,10.03926377]
[1763565422394,10.69926377,139.14,139.09,10.03926377]
[1763565422770,0.66,139.13,139.11,10.03926377]
[1763565422977,0.66,139.13,139.07,8.93021407]
[1763565423293,0.66,139.13,139.11,10.03926377]
[1763565423491,0.66,139.13,139.1,10.03926377]
[1763565423868,0.66,139.15,139.12,10.03926377]
[1763565424099,2.4,139.17,139.13,10.03926377]
[1763565424271,1.74,139.17,139.13,10.03926377]
[1763565424478,0.66,139.16,139.13,10.03926377]
[1763565424679,0.66,139.17,139.14,10.03926377]
[1763565424879,0.66,139.17,139.13,1.74]
[1763565425115,0.66,139.17,139.15,10.03926377]
[1763565425284,2.59593088,139.2,139.16,10.03926377]
[1763565425486,2.59593088,139.2,139.17,10.03926377]
[1763565425687,2.59593088,139.2,139.13,26.89632677]
[1763565425688,1.93593088,139.2,139.19,10.03926377]
[1763565425913,1.93593088,139.2,139.19,11.77926377]
[1763565426082,0.1,139.27,139.19,11.77926377]
[1763565426083,0.1,139.27,139.2,9.78882769]
[1763565426603,0.1,139.27,139.26,17.22007663]
[1763565426778,0.1,139.27,139.26,18.96007663]
[1763565428077,0.1,139.27,139.26,28.74890432]
[1763565428282,0.1,139.27,139.26,18.96007663]
[1763565429016,0.1,139.27,139.26,11.77926377]
[1763565429382,0.1,139.27,139.26,18.96007663]
[1763565429716,0.1,139.27,139.26,11.77926377]
[1763565429923,0.1,139.27,139.26,28.74890432]
[1763565430297,0.66,139.35,139.29,18.12096]
[1763565430596,0.66,139.35,139.33,10.03926377]
[1763565430818,0.66,139.35,139.34,10.03926377]
[1763565430978,0.66,139.35,139.33,10.03926377]
[1763565431291,0.66,139.35,139.29,1.74]
[1763565431292,10.03926377,139.34,139.29,1.74]
[1763565431496,0.66,139.35,139.29,11.77926377]
[1763565431715,10.03926377,139.33,139.27,1.74]
[1763565431921,10.03926377,139.31,139.23,7.18184827]
[1763565432133,10.03926377,139.3,139.23,1.74]
[1763565432301,10.03926377,139.3,139.18,23.10596154]
[1763565432302,10.03926377,139.26,139.15,17.9650651]
[1763565432629,10.44882769,139.29,139.21,10.03926377]
[1763565432809,10.03926377,139.26,139.21,10.03926377]
[1763565432990,10.03926377,139.25,139.21,10.03926377]
[1763565433321,0.66,139.28,139.22,10.03926377]
[1763565433613,1.99999999,139.33,139.26,10.03926377]
[1763565433614,10.03926377,139.31,139.26,10.03926377]
[1763565433797,0.66,139.3,139.27,10.03926377]
[1763565434001,0.66,139.3,139.26,10.03926377]
[1763565434201,10.03926377,139.29,139.24,10.03926377]
[1763565434611,10.03926377,139.27,139.23,11.77926377]
[1763565434794,10.03926377,139.27,139.2,18.12096]
[1763565434795,0.66,139.26,139.22,10.03926377]
[1763565435193,0.66,139.26,139.21,1.74]
[1763565435396,0.66,139.26,139.22,10.03926377]
[1763565435599,10.03926377,139.25,139.18,18.12096]
[1763565435835,10.03926377,139.24,139.19,10.03926377]
[1763565436143,10.03926377,139.21,139.17,10.03926377]
[1763565436439,10.03926377,139.22,139.17,10.03926377]
[1763565436606,10.69926377,139.22,139.17,10.03926377]
[1763565436934,0.66,139.21,139.17,5.97958175]
[1763565437094,5.97958175,139.2,139.15,7.71958175]
[1763565437294,6.63958175,139.21,139.16,5.97958175]
[1763565437529,6.63958175,139.2,139.15,5.97958175]
[1763565437736,0.66,139.2,139.16,5.97958175]
[1763565438032,0.66,139.19,139.16,5.97958175]
[1763565438342,35.091469,139.25,139.18,5.97958175]
[1763565438343,18.12096,139.25,139.18,5.97958175]
[1763565438500,0.66,139.21,139.18,5.97958175]
[1763565438843,5.97958175,139.2,139.16,1.74]
[1763565439143,5.97958175,139.2,139.15,5.97958175]
[1763565439315,0.66,139.21,139.18,5.97958175]
[1763565439746,0.66,139.21,139.19,5.97958175]
[1763565440047,0.66,139.21,139.16,1.74]
[1763565440251,0.66,139.21,139.19,5.97958175]
[1763565441024,0.66,139.21,139.18,5.97958175]
[1763565441345,0.66,139.21,139.16,1.74]
[1763565441552,6.63958175,139.21,139.17,5.97958175]
[1763565441727,6.63958175,139.21,139.16,7.71958175]
[1763565441928,6.64958175,139.2,139.16,1.74]
[1763565442341,4.75410688,139.24,139.13,25.30841263]
[1763565442342,6.64958175,139.19,139.13,25.30841263]
[1763565442528,6.64958175,139.19,139.15,5.97958175]
[1763565442732,0.67,139.19,139.15,5.97958175]
[1763565442931,5.97958175,139.2,139.13,19.86096]
[1763565443246,0.67,139.18,139.14,7.18687327]
[1763565443551,0.67,139.18,139.13,27.04828604]
[1763565443846,0.67,139.18,139.13,19.86096]
[1763565444025,0.67,139.18,139.13,7.71958175]
[1763565444026,5.97958175,139.17,139.13,7.71958175]
[1763565444227,0.67,139.18,139.08,7.18997213]
[1763565444228,5.97958175,139.14,139.08,7.18997213]
[1763565444428,5.97958175,139.14,139.09,5.97958175]
[1763565444646,6.64958175,139.13,139.08,14.90955388]
[1763565445130,0.67,139.12,139.09,5.97958175]
[1763565445323,0.67,139.17,139.09,0.71895894]
[1763565445557,0.67,139.17,139.08,1.74]
[1763565445558,5.97958175,139.13,139.08,1.74]
[1763565445737,5.97958175,139.12,139.08,1.74]
[1763565445941,5.97958175,139.1,139.05,1.74]
[1763565446141,27.90978769,139.16,139.06,5.97958175]
[1763565446340,6.64958175,139.15,139.11,5.97958175]
[1763565446560,0.67,139.15,139.1,5.97958175]
[1763565446868,0.67,139.17,139.13,5.97958175]
[1763565447023,0.67,139.16,139.13,5.97958175]
[1763565447226,5.97958175,139.14,139.09,14.9089529]
[1763565447428,5.97958175,139.14,139.09,7.71958175]
[1763565447625,0.67,139.13,139.09,7.71958175]
[1763565448030,6.64958175,139.13,139.09,7.71958175]
[1763565448249,6.64958175,139.13,139.09,1.74]
[1763565448437,0.67,139.12,139.09,7.71958175]
[1763565448746,0.67,139.12,139.09,1.74]
[1763565449846,6.64958175,139.12,139.09,1.74]
[1763565450253,0.72,139.11,139.09,1.74]
[1763565450758,5.97958175,139.1,139.04,13.37174322]
[1763565450957,6.69958175,139.09,139.05,1.74]
[1763565451127,5.97958175,139.08,139.05,1.74]
[1763565451334,6.69958175,139.08,139.05,1.74]
[1763565451529,0.72,139.07,139.05,1.74]
[1763565452362,0.72,139.09,139.05,7.71958175]
[1763565452532,0.72,139.09,139.05,1.74]
[1763565453030,0.72,139.12,139.07,5.97958175]
[1763565453231,5.97958175,139.14,139.09,5.97958175]
[1763565453437,0.72,139.13,139.09,5.97958175]
[1763565453635,0.72,139.17,139.12,5.97958175]
[1763565453859,0.72,139.19,139.16,5.97958175]
[1763565454066,0.72,139.21,139.18,5.97958175]
[1763565454244,0.72,139.21,139.19,5.97958175]
[1763565454436,0.72,139.21,139.18,5.97958175]
[1763565454636,0.72,139.21,139.17,7.71958175]
[1763565454833,0.72,139.21,139.18,5.97958175]
[1763565455057,0.72,139.21,139.19,5.97958175]
[1763565455261,0.72,139.21,139.17,8.92518119]
[1763565455465,0.72,139.21,139.18,5.97958175]
[1763565455634,5.97958175,139.24,139.19,5.97958175]
[1763565455834,0.72,139.25,139.2,5.97958175]
[1763565456140,6.69958175,139.25,139.2,5.97958175]
[1763565456543,0.72,139.24,139.2,5.97958175]
[1763565456750,6.69958175,139.24,139.17,8.92534086]
[1763565456940,6.69958175,139.24,139.19,5.97958175]
[1763565457152,0.72,139.23,139.17,1.74]
[1763565457469,0.72,139.23,139.2,5.97958175]
[1763565457673,0.72,139.23,139.19,5.97958175]
[1763565457840,0.72,139.23,139.21,5.97958175]
[1763565458199,0.72,139.23,139.2,5.97958175]
[1763565458758,0.72,139.23,139.17,19.86096]
[1763565458994,0.72,139.23,139.19,5.97958175]
[1763565459885,6.69958175,139.23,139.18,5.97958175]
[1763565460089,5.97958175,139.2,139.08,1.99999999]
[1763565460390,0.72,139.24,139.19,5.97958175]
[1763565460594,5.97958175,139.23,139.18,5.97958175]
[1763565460967,0.72,139.22,139.18,13.1644235]
[1763565461166,0.72,139.22,139.19,5.97958175]
[1763565461365,0.72,139.22,139.18,5.97958175]
[1763565462296,6.69958175,139.22,139.17,8.92544548]
[1763565462592,6.69958175,139.22,139.17,14.90502723]
[1763565462802,0.72,139.21,139.17,14.90502723]
[1763565463002,6.69958175,139.21,139.17,1.74]
[1763565463180,5.97958175,139.18,139.17,1.74]
[1763565463486,5.97958175,139.18,139.14,1.74]
[1763565463694,5.97958175,139.17,139.14,1.74]
[1763565463901,6.69958175,139.17,139.14,1.74]
[1763565464278,0.72,139.16,139.14,1.74]
[1763565464502,6.69958175,139.17,139.14,1.74]
[1763565465182,5.97958175,139.15,139.14,1.74]
[1763565465378,0.72,139.16,139.14,1.74]
[1763565465689,0.72,139.15,139.1,31.28943145]
[1763565465896,5.97958175,139.14,139.11,1.74]
[1763565466068,5.97958175,139.13,139.11,1.74]
[1763565466272,5.97958175,139.12,139.11,1.74]
[1763565466467,5.97958175,139.13,139.11,1.74]
[1763565466886,0.72,139.15,139.11,1.74]
[1763565467089,5.97958175,139.14,139.11,1.74]
[1763565467289,5.97958175,139.13,139.11,1.74]
[1763565467674,6.69958175,139.13,139.11,1.74]
[1763565467877,5.97958175,139.12,139.11,1.74]
[1763565468075,6.69958175,139.13,139.11,1.74]
[1763565468588,5.97958175,139.14,139.11,8.92849481]
[1763565468784,5.97958175,139.16,139.11,14.90807656]
[1763565468978,0.72,139.19,139.12,13.16758412]
[1763565469194,0.72,139.19,139.11,1.74]
[1763565469427,5.97958175,139.16,139.11,7.71958175]
[1763565469701,0.72,139.15,139.11,8.92848574]
[1763565470192,0.72,139.15,139.11,1.74]
[1763565470495,0.72,139.15,139.11,7.71958175]
[1763565470698,0.72,139.15,139.11,14.90778236]
[1763565471097,0.72,139.15,139.11,1.74]
[1763565471300,0.72,139.15,139.11,7.71958175]
[1763565472392,198.19275432,139.22,139.12,5.97958175]
[1763565472393,5.97958175,139.17,139.12,5.97958175]
[1763565472572,6.68958175,139.18,139.14,5.97958175]
[1763565472776,5.97958175,139.16,139.14,1.74]
[1763565472997,5.97958175,139.15,139.14,1.74]
[1763565473174,5.97958175,139.15,139.11,1.74]
[1763565473380,5.97958175,139.14,139.11,1.74]
[1763565473789,0.71,139.15,139.11,7.71958175]
[1763565473989,0.71,139.17,139.11,7.71958175]
[1763565474196,5.97958175,139.16,139.11,7.71958175]
[1763565474583,181.22096,139.22,139.14,5.97958175]
[1763565474785,5.97958175,139.19,139.14,7.71958175]
[1763565475195,5.97958175,139.19,139.15,7.18648939]
[1763565475196,0.71,139.18,139.15,7.18648939]
[1763565475584,6.68958175,139.18,139.14,1.74]
[1763565475893,0.71,139.18,139.14,1.74]
[1763565476098,6.68958175,139.18,139.14,8.92698673]
[1763565476304,5.97958175,139.2,139.15,5.97958175]
[1763565476488,6.68958175,139.2,139.16,5.97958175]
[1763565476686,0.71,139.2,139.17,1.74]
[1763565477007,0.71,139.22,139.17,7.71958175]
[1763565477307,6.68958175,139.22,139.17,7.71958175]
[1763565477479,0.71,139.21,139.17,14.90502413]
[1763565477783,6.68958175,139.21,139.17,1.74]
[1763565477983,5.97958175,139.19,139.17,1.74]
[1763565478184,6.68958175,139.2,139.17,1.74]
[1763565478392,5.97958175,139.2,139.17,1.74]
[1763565478588,6.68958175,139.2,139.17,1.74]
[1763565478782,0.71,139.23,139.17,14.90472254]
[1763565479106,5.97958175,139.22,139.17,14.90472254]
[1763565479605,0.71,139.22,139.18,5.97958175]
[1763565480906,5.97958175,139.2,139.17,1.74]
[1763565481290,0.71,139.22,139.17,1.74]
[1763565481604,6.68958175,139.22,139.17,32.86861645]
[1763565481802,6.68958175,139.22,139.17,14.90497487]
[1763565482109,0.71,139.21,139.17,7.71958175]
[1763565482406,6.68958175,139.23,139.17,8.9252153]
[1763565482594,3.75751387,139.27,139.17,7.71958175]
[1763565482595,5.97958175,139.21,139.17,7.71958175]
[1763565482777,6.68958175,139.2,139.17,1.74]
[1763565482979,5.97958175,139.18,139.07,7.19028807]
[1763565483201,5.97958175,139.15,139.1,5.97958175]
[1763565483400,5.97958175,139.15,139.11,1.74]
[1763565483608,6.68958175,139.14,139.11,1.74]
[1763565483792,0.71,139.14,139.11,1.74]
[1763565483989,0.71,139.18,139.12,5.97958175]
[1763565484194,5.97958175,139.17,139.12,5.97958175]
[1763565484395,0.71,139.18,139.11,7.71958175]
[1763565484615,5.97958175,139.16,139.11,7.71958175]
[1763565484796,6.68958175,139.17,139.12,5.97958175]
[1763565485001,6.68958175,139.17,139.13,5.97958175]
[1763565485200,9.78882769,139.23,139.15,7.18648939]
[1763565485201,6.68958175,139.19,139.15,7.18648939]
[1763565485396,5.97958175,139.18,139.14,14.90648073]
[1763565485597,5.97958175,139.17,139.14,1.74]
[1763565485907,13.74510457,139.23,139.0,8.17958174]
[1763565485908,5.97958175,139.15,139.0,8.17958174]
[1763565486115,0.71,139.16,139.05,1.74]
[1763565486288,5.97958175,139.09,139.05,1.74]
[1763565486490,5.97958175,139.1,139.05,7.71958175]
[1763565486691,5.97958175,139.1,139.05,1.74]
[1763565487003,172.88882769,139.16,139.08,5.97958175]
[1763565487004,5.97958175,139.13,139.08,5.97958175]